bitfinex/quotes_ETHUSD_20220119
["timestamp","ask_amount","ask_price","bid_price","bid_amount"]
[1642583598449,1.11326,3076.2,3076.1,2.76574598]
[1642583598651,0.81326,3076.2,3076.1,2.76574598]
[1642583598855,2.73975,3076.2,3076.1,2.76574598]
[1642583599251,2.43975,3076.2,3076.1,2.76574598]
[1642583600090,1.6264761,3076.3,3076.1,2.76574598]
[1642583600490,1.6264761,3076.3,3076.2,0.00284212]
[1642583600693,1.9264761,3076.3,3076.2,0.00284212]
[1642583601899,1.1132561,3076.3,3076.2,0.00284212]
[1642583602496,0.8132561,3076.3,3076.2,0.00284212]
[1642583602700,2.75614,3076.8,3076.3,0.13]
[1642583602701,1.8129404,3076.8,3076.3,0.13]
[1642583602898,1.8129404,3076.8,3076.4,2.76574598]
[1642583603098,2.6259204,3076.8,3076.5,0.13]
[1642583603297,1.6259204,3076.8,3076.6,2.76574598]
[1642583603503,1.6259204,3076.8,3076.7,2.76574598]
[1642583603738,1.6259204,3076.8,3076.5,2.76688283]
[1642583603939,1.6259204,3076.8,3076.6,2.76574598]
[1642583604137,0.8129404,3076.8,3076.7,2.76574598]
[1642583604337,0.8129404,3076.8,3076.5,0.00113685]
[1642583604539,0.81292,3077.0,3076.5,0.00113685]
[1642583604943,0.00113684,3076.9,3076.5,0.00113685]
[1642583605745,0.00113684,3076.9,3076.5,1.9888196]
[1642583605945,0.00113684,3076.9,3076.6,2.89574598]
[1642583606253,0.00113684,3076.9,3076.7,5.03552463]
[1642583606444,0.00113684,3076.9,3076.8,11.3611199]
[1642583606645,0.00113684,3076.9,3076.8,9.11574598]
[1642583606845,0.00113684,3076.9,3076.8,9.24574598]
[1642583607245,0.00113684,3076.9,3076.8,9.11574598]
[1642583608206,0.00113684,3076.9,3076.8,2.76574598]
[1642583608406,0.00113684,3076.9,3076.8,5.96574598]
[1642583612065,0.00113684,3076.9,3076.8,2.76574598]
[1642583612266,0.00113684,3076.9,3076.7,2.76574598]
[1642583612468,0.00113684,3076.9,3076.8,2.76574598]
[1642583612865,0.81405984,3076.9,3076.6,2.76574598]
[1642583613068,0.81405984,3076.9,3076.7,2.76574598]
[1642583613266,0.81405984,3076.9,3076.5,6.60563685]
[1642583613267,0.81405984,3076.9,3076.8,2.76574598]
[1642583613467,0.81405984,3076.9,3076.5,4.73956881]
[1642583613666,0.81405984,3076.9,3076.6,2.76574598]
[1642583613868,1.62699984,3076.9,3076.7,2.76574598]
[1642583614071,1.62699984,3076.9,3076.8,2.76574598]
[1642583614270,1.75699984,3076.9,3076.8,2.76574598]
[1642583614467,1.75699984,3076.9,3076.5,2.76688283]
[1642583614667,1.75699984,3076.9,3076.6,2.76574598]
[1642583614668,1.62699984,3076.9,3076.6,2.76574598]
[1642583614887,1.62699984,3076.9,3076.7,2.76574598]
[1642583615088,1.62699984,3076.9,3076.5,0.00113685]
[1642583615490,2.44004984,3076.9,3076.5,0.00113685]
[1642583615690,2.44004984,3076.9,3076.5,2.76638982]
[1642583615691,3.25309984,3076.9,3076.5,2.76638982]
[1642583615892,2.60699984,3076.9,3076.5,2.76638982]
[1642583616089,2.60699984,3076.9,3076.7,0.095064]
[1642583616292,2.60699984,3076.9,3076.8,2.76525297]
[1642583616492,2.73699984,3076.9,3076.7,0.095064]
[1642583617493,2.73699984,3076.9,3076.8,2.7652507]
[1642583617694,2.60699984,3076.9,3076.8,2.7652507]
[1642583618297,1.79405984,3076.9,3076.8,2.7652507]
[1642583620244,1.79405984,3076.9,3076.7,0.095064]
[1642583620442,0.13,3076.8,3076.7,0.095064]
[1642583620743,0.81307,3076.8,3076.7,2.86039298]
[1642583620949,1.79405984,3076.9,3076.7,2.86039298]
[1642583621149,1.79405984,3076.9,3076.8,2.76532898]
[1642583623000,1.79405984,3076.9,3076.8,4.82748539]
[1642583623001,0.98113684,3076.9,3076.8,4.82748539]
[1642583623200,0.98113684,3076.9,3076.8,4.95748539]
[1642583623406,0.98113684,3076.9,3076.8,9.60748539]
[1642583624199,0.98113684,3076.9,3076.8,7.54532898]
[1642583624400,0.98113684,3076.9,3076.8,9.56269869]
[1642583624604,0.98113684,3076.9,3076.8,9.55929971]
[1642583624800,0.98113684,3076.9,3076.8,7.54532898]
[1642583625000,0.98113684,3076.9,3076.8,9.70000108]
[1642583625202,0.8127723,3077.2,3076.9,6.21227368]
[1642583625402,0.8127723,3077.2,3077.0,1.94271639]
[1642583625601,0.8127723,3077.2,3077.0,5.86590965]
[1642583625602,0.00113685,3077.1,3077.0,5.86590965]
[1642583625802,0.00113685,3077.1,3077.0,3.92319326]
[1642583626248,0.00113685,3077.1,3077.0,5.87691105]
[1642583626947,0.00113685,3077.1,3077.0,3.92319326]
[1642583627151,0.00113685,3077.1,3077.0,5.86306171]
[1642583627348,0.00113685,3077.1,3077.0,9.16591365]
[1642583627547,0.00113685,3077.1,3077.0,5.85648997]
[1642583627947,0.00113685,3077.1,3077.0,3.92319326]
[1642583628747,0.00113685,3077.1,3077.0,5.84561653]
[1642583629353,0.00113685,3077.1,3077.0,11.14561653]
[1642583629556,1.44631134,3077.1,3077.0,11.14561653]
[1642583630394,1.44631134,3077.1,3077.0,5.84561653]
[1642583631201,1.44631134,3077.1,3077.0,9.74561653]
[1642583631901,1.44631134,3077.1,3077.0,5.97541653]
[1642583632103,1.44631134,3077.1,3077.0,4.05299326]
[1642583632304,1.44631134,3077.1,3077.0,5.87083594]
[1642583632501,1.44631134,3077.1,3077.0,3.92319326]
[1642583633301,1.44631134,3077.1,3077.0,9.23114903]
[1642583634450,1.44631134,3077.1,3077.0,11.35956088]
[1642583634451,1.134e-05,3077.1,3077.0,11.35956088]
[1642583634853,1.134e-05,3077.1,3077.0,9.40160511]
[1642583635048,1.134e-05,3077.1,3077.0,7.90364326]
[1642583635653,11.82302701,3077.6,3077.1,7.15]
[1642583635853,11.82302701,3077.6,3077.2,5.13189165]
[1642583636053,0.0022737,3077.5,3077.3,2.76532898]
[1642583636455,0.00170527,3077.4,3077.3,2.76532898]
[1642583636656,0.00170527,3077.4,3077.3,2.217682]
[1642583636854,0.00170527,3077.4,3077.3,4.98301098]
[1642583637252,0.00170527,3077.4,3077.3,12.08301098]
[1642583637699,0.00170527,3077.4,3077.3,4.98301098]
[1642583638199,0.00170527,3077.4,3077.3,7.48301098]
[1642583639199,0.00170527,3077.4,3077.3,11.53301098]
[1642583639903,0.00170527,3077.4,3077.3,32.87999101]
[1642583640105,7.40203709,3077.6,3077.4,26.3]
[1642583640401,7.40203709,3077.6,3077.5,16.70908441]
[1642583640600,7.40203709,3077.6,3077.5,12.56160371]
[1642583640801,7.40317394,3077.6,3077.5,12.72405371]
[1642583641002,7.40317394,3077.6,3077.5,10.54577898]
[1642583641652,7.40317394,3077.6,3077.5,3.23332898]
[1642583641852,7.40317394,3077.6,3077.5,2.76532898]
[1642583642051,7.53297394,3077.6,3077.5,2.76532898]
[1642583643452,7.40317394,3077.6,3077.5,2.76532898]
[1642583644057,7.40317394,3077.6,3077.5,6.11532898]
[1642583644257,7.40317394,3077.6,3077.5,2.76532898]
[1642583645197,8.34571394,3077.6,3077.5,2.76532898]
[1642583645395,8.34571394,3077.6,3077.1,2.76532898]
[1642583645697,0.1298,3077.5,3077.2,0.00113684]
[1642583645898,0.1298,3077.5,3077.2,2.76646582]
[1642583646095,0.1298,3077.5,3077.3,1.98537368]
[1642583646294,7.40317394,3077.6,3077.4,2.76532898]
[1642583646900,7.40317394,3077.6,3077.5,2.76532898]
[1642583647099,7.40317394,3077.6,3077.2,2.76646582]
[1642583647300,7.53297394,3077.6,3077.2,2.76646582]
[1642583648871,7.40317394,3077.6,3077.3,2.03794367]
[1642583649070,7.40317394,3077.6,3077.4,2.76532898]
[1642583649271,7.40317394,3077.6,3077.5,2.76532898]
[1642583649875,8.21588394,3077.6,3077.2,2.76646582]
[1642583650278,8.21588394,3077.6,3077.3,2.76532898]
[1642583650477,8.21588394,3077.6,3077.4,2.76532898]
[1642583650678,8.21588394,3077.6,3077.5,2.76532898]
[1642583651076,8.21588394,3077.6,3077.2,0.00113684]
[1642583651077,8.34568394,3077.6,3077.2,0.00113684]
[1642583651276,8.21588394,3077.6,3077.2,0.00113684]
[1642583651476,9.02864394,3077.6,3077.2,0.00113684]
[1642583651680,9.84137464,3077.6,3077.2,0.00113684]
[1642583651984,0.1298,3077.5,3077.2,0.00113684]
[1642583652179,1.62588,3077.4,3077.2,2.76646582]
[1642583652406,0.1298,3077.3,3077.2,0.00113684]
[1642583652808,0.1298,3077.3,3077.0,2.76531412]
[1642583652809,0.94285,3077.3,3077.0,2.76758781]
[1642583653008,6.91305,3077.2,3076.7,0.095064]
[1642583653207,6.91305,3077.2,3076.7,6.4e-05]
[1642583653208,0.1298,3077.1,3076.7,6.4e-05]
[1642583653411,6.77628,3077.0,3076.8,0.00170527]
[1642583653606,1.13,3076.9,3076.3,2.43976829]
[1642583653807,0.13,3076.9,3076.3,2.43976829]
[1642583654008,0.8130975,3076.8,3076.4,0.00227369]
[1642583654209,0.13,3076.7,3076.4,0.00227369]
[1642583655213,1.62607,3076.6,3076.4,0.00227369]
[1642583655414,1.6260878,3076.5,3076.4,0.00227369]
[1642583655613,0.8130478,3076.5,3076.4,0.00227369]
[1642583656444,1.6260978,3076.5,3076.4,0.00227369]
[1642583657648,1.7560978,3076.5,3076.4,0.00227369]
[1642583658948,0.94305,3076.5,3076.4,0.00227369]
[1642583659900,0.81305,3076.5,3076.4,0.00227369]
[1642583660292,1.62611,3076.5,3076.4,0.00227369]
[1642583660992,7.72611,3076.5,3076.4,0.00227369]
[1642583661406,1.62611,3076.5,3076.4,0.00227369]
[1642583661597,2.62611,3076.5,3076.4,0.00227369]
[1642583661795,2.75611,3076.5,3076.4,0.00227369]
[1642583663646,1.75611,3076.5,3076.4,0.00227369]
[1642583666048,1.62611,3076.5,3076.4,0.00227369]
[1642583666449,2.62611,3076.5,3076.4,0.00227369]
[1642583667052,2.75611,3076.5,3076.4,0.00227369]
[1642583668917,5.60611,3076.5,3076.4,0.00227369]
[1642583669417,2.75611,3076.5,3076.4,0.00227369]
[1642583669818,3.05611,3076.5,3076.4,0.00227369]
[1642583670218,2.92611,3076.5,3076.4,0.00227369]
[1642583673656,1.62611,3076.5,3076.4,0.00227369]
[1642583675904,2.92611,3076.5,3076.4,0.00227369]
[1642583677305,1.62611,3076.5,3076.4,0.00227369]
[1642583678108,2.92611,3076.5,3076.4,0.00227369]
[1642583678751,2.62611,3076.5,3076.4,0.00227369]
[1642583679353,1.62611,3076.5,3076.4,0.00227369]
[1642583680553,2.62611,3076.5,3076.4,0.00227369]
[1642583681855,2.92611,3076.5,3076.4,0.00227369]
[1642583683702,6.62611,3076.5,3076.4,0.00227369]
[1642583683901,8.25261,3076.5,3076.3,2.43976829]
[1642583684102,0.3,3076.4,3076.3,2.43976829]
[1642583684504,0.3,3076.4,3076.3,2.44261041]
[1642583687359,1.3,3076.4,3076.3,2.44261041]
[1642583688361,1.3,3076.4,3076.1,48.79705]
[1642583688362,5.1,3076.3,3076.1,41.39053701]
[1642583688564,5.5,3076.2,3076.1,38.83449925]
[1642583688764,8.2,3076.2,3076.1,32.32727925]
[1642583688961,6.23,3076.2,3076.1,32.32841609]
[1642583689361,8.93,3076.2,3076.1,25.82125609]
[1642583689567,10.58556521,3076.2,3076.1,19.31330229]
[1642583690000,0.81351,3075.7,3075.2,3.9972]
[1642583690202,0.81351,3075.7,3075.3,2.76644381]
[1642583690400,1.11351,3075.7,3075.3,2.7709912]
[1642583690600,1.11351,3075.7,3075.4,2.76644381]
[1642583690999,1.11351,3075.7,3075.5,0.00341054]
[1642583691404,2.7403449,3075.7,3075.5,0.00341054]
[1642583691603,0.8134,3075.6,3075.4,0.00397897]
[1642583692007,0.8134,3075.6,3075.5,2.76644381]
[1642583692406,0.8134,3075.6,3075.5,2.76985435]
[1642583692605,3.5134,3075.6,3075.5,0.00341054]
[1642583693005,3.5134,3075.6,3075.4,0.00397897]
[1642583693206,3.5134,3075.6,3075.5,2.76644381]
[1642583693648,3.5134,3075.6,3075.5,2.76985435]
[1642583693856,3.5134,3075.6,3075.5,0.00341054]
[1642583694255,0.81345,3075.4,3075.1,0.00568424]
[1642583694453,2.7403231,3075.4,3075.2,2.76644381]
[1642583694654,2.74031,3075.4,3075.2,2.76644381]
[1642583695256,1.11341,3075.4,3075.2,2.76644381]
[1642583695756,1.11341,3075.4,3075.1,0.00568424]
[1642583696557,1.11341,3075.4,3075.0,0.00625266]
[1642583696758,2.74015,3075.4,3075.0,0.00625266]
[1642583696960,2.74015,3075.4,3075.0,1.56030533]
[1642583697408,2.74015,3075.4,3075.1,0.00568424]
[1642583697600,1.92678,3075.4,3075.1,0.00568424]
[1642583697999,2.74015,3075.4,3075.1,0.00568424]
[1642583698801,2.74015,3075.4,3075.0,1.56030533]
[1642583699004,1.62691,3075.3,3075.0,1.56030533]
[1642583699206,2.44033,3075.3,3075.1,0.00568424]
[1642583699404,0.81342,3075.3,3075.1,0.00568424]
[1642583699605,0.81342,3075.3,3075.0,1.56030533]
[1642583699804,0.81342,3075.3,3075.1,0.00568424]
[1642583700703,0.81341,3075.2,3075.1,0.00568424]
[1642583701144,0.81341,3075.2,3075.0,0.00625266]
[1642583701347,0.81342,3075.3,3075.2,1.62681999]
[1642583701747,0.81342,3075.3,3075.2,1.6319358]
[1642583701949,1.62684,3075.3,3075.2,1.6319358]
[1642583703453,9.12684,3075.3,3075.2,0.31770393]
[1642583703652,9.12684,3075.3,3074.8,1.3148]
[1642583703653,7.2,3075.2,3074.8,0.13]
[1642583703853,0.81365,3075.1,3074.8,0.13]
[1642583704052,0.81355,3075.0,3074.9,0.00170527]
[1642583705096,0.81353,3075.0,3074.9,0.00170527]
[1642583705896,1.24325,3075.1,3074.9,0.00170527]
[1642583706097,1.92709,3075.1,3074.9,0.00170527]
[1642583706297,1.11365,3075.1,3074.9,0.00170527]
[1642583706499,0.81365,3075.1,3074.9,0.00170527]
[1642583706803,5.38,3075.0,3074.9,0.00170527]
[1642583707200,0.13,3075.0,3074.9,0.00170527]
[1642583707503,3.25,3074.9,3074.5,3.9111]
[1642583707702,3.38,3074.9,3074.5,3.9111]
[1642583707904,1.62732,3074.7,3074.6,0.00170527]
[1642583708101,1.75732,3074.7,3074.6,0.00170527]
[1642583708403,8.20896864,3074.7,3074.6,0.00170527]
[1642583708648,5.82732,3074.7,3074.6,0.00170527]
[1642583708849,0.3,3074.6,3074.5,0.0022737]
[1642583709649,0.81349,3074.7,3074.5,0.0022737]
[1642583709848,0.3,3074.6,3074.2,0.00397897]
[1642583710456,0.81354,3074.6,3074.2,0.00397897]
[1642583710648,0.3,3074.5,3074.2,0.00397897]
[1642583711151,0.3,3074.5,3074.2,2.24856955]
[1642583711450,5.12681,3075.1,3074.3,0.00341054]
[1642583711649,0.81343,3075.0,3074.3,0.00341054]
[1642583711850,0.81343,3075.0,3074.3,0.13341054]
[1642583712050,5.12794684,3075.1,3074.3,0.13341054]
[1642583712253,3.50113684,3075.1,3074.4,0.00284212]
[1642583712523,0.13,3075.0,3074.3,0.00341054]
[1642583713127,0.81351,3074.8,3074.3,0.00341054]
[1642583713525,1.11346,3074.7,3074.2,0.00397897]
[1642583713823,0.81346,3074.7,3074.2,0.13397897]
[1642583714023,0.81346,3074.7,3074.2,2.37856955]
[1642583714226,0.81346,3074.7,3074.3,0.00341054]
[1642583714424,0.81346,3074.7,3074.4,0.66940842]
[1642583714624,0.81346,3074.7,3074.5,0.66940842]
[1642583714922,0.81346,3074.7,3074.5,0.67168212]
[1642583715124,1.62704,3074.7,3074.5,0.67168212]
[1642583715923,1.62704,3074.7,3074.6,2.76728247]
[1642583716144,1.92704,3074.7,3074.6,2.76728247]
[1642583716351,2.74058,3074.7,3074.6,2.76728247]
[1642583716950,2.87058,3074.7,3074.6,2.76728247]
[1642583718852,6.37058,3074.7,3074.6,2.76728247]
[1642583719055,7.2,3074.5,3074.0,1.58749115]
[1642583719259,8.1436,3074.4,3073.7,0.13]
[1642583719459,0.81393,3073.9,3072.9,1.59107304]
[1642583719658,0.18662752,3073.8,3073.0,1.59107304]
[1642583719903,0.18662752,3073.8,3073.0,1.59959939]
[1642583719904,0.43,3073.8,3073.0,1.59959939]
[1642583720102,0.13,3073.8,3073.0,0.00852635]
[1642583720402,0.81399,3073.7,3073.0,0.00852635]
[1642583720602,1.11395,3073.6,3073.0,0.00852635]
[1642583720803,0.13,3073.5,3073.0,1.59107304]
[1642583721006,1.11395,3073.6,3072.9,1.60016781]
[1642583721202,1.11395,3073.6,3073.1,0.00795793]
[1642583721409,0.94386,3073.5,3073.1,0.00795793]
[1642583721604,0.94386,3073.5,3072.9,0.00909477]
[1642583721605,0.03025518,3073.3,3072.9,0.00909477]
[1642583721804,0.13,3073.2,3072.9,0.00909477]
[1642583722010,0.13,3073.3,3072.9,0.00909477]
[1642583723208,0.81397,3073.2,3072.9,0.00909477]
[1642583723408,1.11397,3073.2,3072.9,0.00909477]
[1642583723847,1.62782,3073.1,3072.9,0.00909477]
[1642583724251,1.11397,3073.2,3073.1,2.80148914]
[1642583724454,0.81397,3073.2,3073.1,2.80148914]
[1642583724652,0.81397,3073.2,3073.1,2.80944707]
[1642583725850,1.11397,3073.2,3073.1,2.80944707]
[1642583726256,0.81397,3073.2,3073.1,5.10633591]
[1642583726460,5.12761,3073.8,3073.2,0.03223952]
[1642583726461,3.5,3073.8,3073.2,0.03223952]
[1642583726659,1.0,3074.0,3073.4,0.01200848]
[1642583726855,1.0,3074.0,3073.5,0.13]
[1642583726856,4.5,3074.0,3073.5,0.13]
[1642583727055,1.0,3074.1,3073.5,0.13568423]
[1642583727256,1.0,3074.1,3073.9,1.54668344]
[1642583727499,1.0,3074.1,3073.6,0.00511581]
[1642583727500,0.81356,3074.0,3073.6,0.00511581]
[1642583727700,0.81356,3074.0,3073.4,5.668]
[1642583728102,0.81356,3074.0,3073.5,0.00568423]
[1642583728503,0.81356,3074.0,3073.5,1.35883336]
[1642583728909,0.81356,3074.0,3073.6,0.00511581]
[1642583729606,0.81356,3074.0,3073.6,0.13511581]
[1642583730004,0.81356,3074.0,3073.7,0.00454739]
[1642583730409,7.31959,3074.3,3073.8,0.13]
[1642583730705,7.31959,3074.3,3073.9,0.00341054]
[1642583730905,6.5061,3074.3,3073.9,0.00341054]
[1642583731947,6.8061,3074.3,3073.9,0.00341054]
[1642583732549,7.6196,3074.3,3073.9,0.00341054]
[1642583733149,6.8061,3074.3,3074.0,1.26210942]
[1642583733550,6.8061,3074.3,3074.1,0.00227369]
[1642583733752,6.5061,3074.3,3074.1,0.00227369]
[1642583739457,6.8061,3074.3,3074.1,2.76964256]
[1642583739652,6.5061,3074.3,3074.1,2.76964256]
[1642583739850,6.5061,3074.3,3074.2,0.00170527]
[1642583740051,6.5061,3074.3,3074.2,2.30945741]
[1642583740255,2.07872484,3074.3,3074.2,26.06873985]
[1642583741755,0.326872,3074.3,3074.2,26.06873985]
[1642583742395,0.326872,3074.3,3074.2,27.65981289]
[1642583742800,0.326872,3074.3,3074.2,26.06873985]
[1642583743000,0.326872,3074.3,3074.2,27.65981289]
[1642583743201,0.00113684,3074.7,3074.5,0.81315]
[1642583743401,0.00113684,3074.7,3074.6,9.68294636]
[1642583743600,0.00113684,3074.7,3074.6,24.11378094]
[1642583744611,0.00113684,3074.7,3074.6,25.49434981]
[1642583745203,0.13,3075.7,3074.7,7.33819996]
[1642583745403,0.13,3075.7,3074.9,0.81309]
[1642583745602,0.00511582,3075.6,3075.1,0.8130848]
[1642583745802,0.13,3075.5,3075.2,2.76736887]
[1642583746003,0.1345474,3075.5,3075.2,2.76736887]
[1642583746274,0.00397897,3075.4,3075.3,11.1465319]
[1642583747377,0.00397897,3075.4,3075.3,4.0465319]
[1642583748578,0.00397897,3075.4,3075.3,2.76736887]
[1642583748778,0.00397897,3075.4,3075.2,2.76736887]
[1642583749179,0.00341055,3075.3,3075.2,2.76736887]
[1642583751012,0.81331,3075.6,3075.3,1.62308945]
[1642583751409,0.00113685,3075.5,3075.3,1.62308945]
[1642583751609,0.13,3075.4,3075.3,1.62308945]
[1642583752013,0.13,3075.4,3074.9,1.62672]
[1642583752217,0.81352,3075.3,3075.0,2.767177]
[1642583752422,0.13,3075.2,3075.0,0.00170527]
[1642583752610,0.46913685,3075.5,3075.1,0.00113685]
[1642583752611,0.13,3075.4,3075.1,0.00113685]
[1642583752814,0.13,3075.4,3074.7,2.77068965]
[1642583753215,0.9434607,3075.4,3074.8,0.81629212]
[1642583753413,0.9434607,3075.4,3074.9,2.76727911]
[1642583753414,0.81347,3075.3,3074.9,2.76727911]
[1642583753654,0.13,3075.2,3075.0,2.7671654]
[1642583753853,0.13,3075.4,3075.0,2.76887067]
[1642583754054,0.13,3075.4,3075.1,0.00113685]
[1642583754458,0.13,3075.4,3075.0,3.58222142]
[1642583754655,0.13,3075.4,3075.0,0.81502527]
[1642583754856,0.13,3075.4,3075.1,0.00113685]
[1642583755061,0.13,3075.4,3075.1,0.81446685]
[1642583755255,0.13,3075.4,3075.1,0.00113685]
[1642583755855,0.81336,3075.3,3075.1,0.00113685]
[1642583756056,0.13,3075.2,3075.1,0.00113685]
[1642583756458,0.13,3075.2,3074.9,2.76952536]
[1642583756657,0.13,3075.2,3075.0,0.00170527]
[1642583756858,0.13,3075.4,3075.0,0.00170527]
[1642583757420,0.8134,3075.3,3075.0,0.00170527]
[1642583758211,0.8134,3075.3,3075.0,1.38543943]
[1642583758511,0.8134,3075.3,3075.1,2.76838852]
[1642583759111,0.8134,3075.3,3075.1,0.00113685]
[1642583759311,0.13,3075.4,3075.1,0.00113685]
[1642583759513,0.81445685,3075.5,3075.1,5.20819871]
[1642583759514,0.00113685,3075.5,3075.1,5.20819871]
[1642583759712,0.00113685,3075.5,3075.2,2.76708831]
[1642583759911,0.00113685,3075.5,3075.2,3.58035831]
[1642583760117,0.00113685,3075.5,3075.2,0.81327]
[1642583760313,0.00113685,3075.5,3075.3,2.76690129]
[1642583761367,6.99207068,3075.8,3075.5,1.62642]
[1642583761570,6.99207068,3075.8,3075.5,2.43963]
[1642583761770,0.00113684,3075.7,3075.6,0.8132]
[1642583763370,0.00113684,3075.7,3075.6,3.5798955]
[1642583763773,0.00113684,3075.7,3075.6,5.74225571]
[1642583764072,0.00113684,3075.7,3075.6,3.5798955]
[1642583764670,0.00113684,3075.7,3075.6,6.1298955]
[1642583765329,0.00113684,3075.7,3075.6,3.5798955]
[1642583766624,0.00113684,3075.7,3075.6,0.8132]
[1642583767225,0.00113684,3075.7,3075.6,3.57989448]
[1642583767830,0.00113684,3075.7,3075.6,3.57989592]
[1642583768229,0.00113684,3075.7,3075.6,0.8132]
[1642583768858,0.00113684,3075.7,3075.6,3.57987605]
[1642583770368,0.00113684,3075.7,3075.6,2.76667605]
[1642583770661,0.81329,3075.6,3075.3,0.81324]
[1642583770860,0.81329,3075.6,3075.4,2.76678584]
[1642583771860,0.00113684,3075.7,3075.4,2.76678584]
[1642583772811,0.00113684,3075.7,3075.5,1.38382464]
[1642583773017,0.00113684,3075.7,3075.6,2.76678584]
[1642583773611,0.00113684,3075.7,3075.6,3.01678584]
[1642583777505,7.33113684,3075.7,3075.6,3.01678584]
[1642583777702,7.33113684,3075.7,3075.6,0.25]
[1642583778404,8.79913684,3075.7,3075.6,0.25]
[1642583778600,8.61238684,3075.7,3075.6,0.25]
[1642583779400,2.41238684,3075.7,3075.6,0.25]
[1642583779800,1.41238684,3075.7,3075.6,0.25]
[1642583780007,1.41238684,3075.7,3075.6,3.01693691]
[1642583782416,2.41238684,3075.7,3075.6,3.01693691]
[1642583782618,1.46913684,3075.7,3075.6,3.01693691]
[1642583782814,0.46913684,3075.7,3075.6,3.01693691]
[1642583783774,0.00113684,3075.7,3075.6,3.01693691]
[1642583783972,0.81438684,3075.7,3075.6,3.01693691]
[1642583784373,0.00113684,3075.7,3075.6,3.01693691]
[1642583785779,0.1295,3076.1,3075.6,3.01693691]
[1642583786083,0.00170527,3076.0,3075.7,2.76693691]
[1642583786281,0.81495527,3076.0,3075.7,4.39333691]
[1642583786482,0.00113685,3075.9,3075.8,2.76693691]
[1642583788408,26.45622561,3077.0,3075.9,2.31907223]
[1642583788616,26.45622561,3077.0,3075.5,1.63936786]
[1642583788617,7.2,3076.8,3076.0,0.03739301]
[1642583788814,0.00113685,3076.1,3076.0,0.03739301]
[1642583789013,0.81429685,3076.1,3075.5,1.63936786]
[1642583789212,0.81429685,3076.1,3075.6,2.76668495]
[1642583789413,0.81429685,3076.1,3075.6,2.89839022]
[1642583789614,0.81429685,3076.1,3075.9,0.81316]
[1642583789812,0.81429685,3076.1,3075.7,4.39308495]
[1642583790013,0.81429685,3076.1,3075.7,1.6264]
[1642583790412,0.81429685,3076.1,3075.8,2.76678816]
[1642583790914,0.81429685,3076.1,3075.7,1.6264]
[1642583791161,0.81429685,3076.1,3075.8,2.76678395]
[1642583791363,0.81429685,3076.1,3075.7,1.6264]
[1642583792766,0.81429685,3076.1,3075.8,2.76673764]
[1642583792967,0.94429685,3076.1,3075.8,2.76673764]
[1642583794165,0.81429685,3076.1,3075.8,2.76673764]
[1642583794770,0.81429685,3076.1,3075.9,0.81316]
[1642583798861,0.81429685,3076.1,3076.0,2.7667126]
[1642583799862,0.81429685,3076.1,3075.9,0.81316]
[1642583801066,0.81429685,3076.1,3076.0,2.76673809]
[1642583801268,0.81429685,3076.1,3076.0,2.76676288]
[1642583803617,0.00113685,3076.1,3076.0,2.76676288]
[1642583804819,0.81427685,3076.1,3076.0,2.76676288]
[1642583807164,4.56427685,3076.1,3076.0,2.76676288]
[1642583807766,4.69427685,3076.1,3075.7,0.25]
[1642583807966,6.78905785,3076.1,3075.8,2.76701136]
[1642583808367,6.78905785,3076.1,3075.7,0.25]
[1642583808565,0.02534423,3076.0,3075.7,0.25]
[1642583808766,1.41134,3075.9,3075.7,0.25]
[1642583809065,1.41134,3075.9,3075.8,2.7670629]
[1642583809267,4.36134,3075.9,3075.8,2.7670629]
[1642583809910,1.41134,3075.9,3075.8,2.7670629]
[1642583811214,4.66134,3075.9,3075.8,2.7670629]
[1642583811615,1.41134,3075.9,3075.8,2.7670629]
[1642583812316,1.28134,3075.9,3075.8,2.7670629]
[1642583814576,0.81427685,3076.1,3075.8,5.03935077]
[1642583814778,0.81427685,3076.1,3075.9,3.7101929]
[1642583814977,0.81427685,3076.1,3076.0,2.7670629]
[1642583815378,0.81427685,3076.1,3076.0,3.89727444]
[1642583818317,0.81427685,3076.1,3076.0,2.7670629]
[1642583819218,0.81314,3076.1,3076.0,2.7670629]
[1642583823467,0.81314,3076.1,3075.9,0.81313]
[1642583824929,0.81314,3076.1,3076.0,2.76690012]
[1642583827729,0.16919231,3076.4,3076.1,0.02886456]
[1642583827924,0.97915441,3077.1,3076.2,2.89690012]
[1642583828123,0.97915441,3077.1,3076.3,4.39278012]
[1642583828322,0.97915441,3077.1,3076.4,2.76690012]
[1642583828323,0.13,3077.1,3076.4,2.76690012]
[1642583828524,0.13,3077.1,3076.4,4.29875383]
[1642583828758,0.13,3077.1,3076.5,2.76690012]
[1642583828964,0.81291,3077.0,3076.6,0.813]
[1642583829362,0.00568424,3076.9,3076.7,2.76617606]
[1642583829865,0.13,3077.4,3076.6,0.813]
[1642583829866,0.00511581,3076.8,3076.6,0.813]
[1642583830163,0.00454739,3076.7,3076.6,0.813]
[1642583830366,0.00454739,3076.7,3076.6,3.57918162]
[1642583830768,0.00454739,3076.7,3076.6,0.813]
[1642583835218,0.00454739,3076.7,3076.4,1.62611]
[1642583835219,0.81315,3076.6,3076.4,1.62611]
[1642583835620,0.00341054,3076.5,3076.4,1.62611]
[1642583836271,0.00341054,3076.5,3076.3,1.1988]
[1642583836472,0.00341054,3076.5,3076.2,1.62629]
[1642583836473,0.81317,3076.4,3076.2,1.62629]
[1642583836675,0.81601212,3076.4,3075.9,6.75741]
[1642583836871,0.13227369,3076.3,3076.0,2.7667336]
[1642583837073,0.13227369,3076.3,3076.1,2.76668352]
[1642583837275,0.00170527,3076.2,3075.9,5.60651]
[1642583837475,0.00170527,3076.2,3076.0,2.76682676]
[1642583837674,0.00113685,3076.1,3075.9,5.60651]
[1642583837874,0.00113685,3076.1,3076.0,2.76676866]
[1642583839274,0.26880685,3076.2,3076.0,2.76676866]
[1642583839775,0.26880685,3076.2,3076.1,2.76672861]
[1642583840018,0.26880685,3076.2,3076.0,2.76672861]
[1642583841417,0.26880685,3076.2,3076.0,4.26014891]
[1642583841619,0.26880685,3076.2,3076.1,2.76672861]
[1642583841821,0.26880685,3076.2,3076.0,2.76672861]
[1642583843023,0.26880685,3076.2,3075.9,1.62641]
[1642583843221,0.26880685,3076.2,3076.0,2.76668593]
[1642583843865,0.81306,3076.4,3076.0,2.76668593]
[1642583844066,0.81306,3076.4,3076.2,1.62609]
[1642583844269,0.00227369,3076.5,3076.3,2.76668593]
[1642583844569,0.00170527,3076.4,3076.3,2.76668593]
[1642583846072,0.00170527,3076.4,3076.3,2.89668593]